fUSD/lending_fUSD_20260318
["ID","MTS","AMOUNT","RATE_DAILY","PERIOD"]
[408534009,1773852631622,-627.70962748,0.000146,2]
[408534010,1773852631631,-151.0,0.00014641,2]
[408534012,1773852631640,-238.81224002,0.00014641,2]
[408534013,1773852631650,-151.0,0.00014641,2]
[408534014,1773852631660,-165.23637485,0.00014641,2]
[408534015,1773852631669,-10640.87,0.0001465,2]
[408534016,1773852631679,-689.0,0.00014655,2]
[408534017,1773852631688,-150.0,0.00014698,2]
[408534018,1773852631698,-4142.2444,0.00014699,2]
[408534020,1773852631706,-91593.3408,0.00014699,2]
[408534021,1773852631715,-1175.31094404,0.00014709,2]
[408534023,1773852631724,-689.0,0.00014799,2]
[408534024,1773852631734,-39248.22637027,0.00014799,2]
[408534025,1773852631745,-6128.07353375,0.00014799,2]
[408534026,1773852631759,-74649.57479598,0.00014799,2]
[408534027,1773852631768,-689.0,0.00014809,2]
[408534028,1773852631777,-1175.310944,0.00014841,2]
[408534029,1773852631786,-1336.8925829,0.0001485,2]
[408534030,1773852631795,-166.66,0.00014865,2]
[408534031,1773852631803,-1000.0,0.000149,2]
[408534032,1773852631811,-28324.88040092,0.000149,2]
[408534034,1773852637590,-4021.8,0.00014855,2]
[408534035,1773852637600,-1160.518,0.000149,2]
[408534135,1773852639583,-520.61531432,0.000149,2]
[408534168,1773852642526,-4.28152707,0.000149,2]
[408534229,1773853105955,6886.95,0.00030137,120]
[408534233,1773853196043,280.70131564,0.0001,2]
[408534239,1773853327991,300.35,0.000163,120]
[408534244,1773853516689,270.31,0.000163,120]
[408534254,1773853708000,243.28,0.000163,120]
[408534257,1773853758115,-164.68,0.00011094,2]
[408534258,1773853758136,-241.0,0.00011094,2]
[408534259,1773853758161,-1015.14138384,0.00012203,2]
[408534260,1773853758182,-256.21511094,0.00012203,2]
[408534261,1773853758202,-302.0,0.00013705,2]
[408534262,1773853758225,-300.0,0.00013705,2]
[408534263,1773853758247,-3271.15352122,0.00013706,2]
[408534271,1773853831517,-300.0,0.00013705,2]
[408534273,1773853831528,-1200.0,0.00013705,2]
[408534276,1773853831538,-500.0,0.00013705,2]
[408534278,1773853831548,-300.0,0.00013705,2]
[408534279,1773853831557,-600.0,0.00013705,2]
[408534280,1773853831592,-674.65524639,0.00013706,2]
[408534281,1773853831614,-712.01854873,0.00013706,2]
[408534282,1773853831627,-1190.85721838,0.00013706,2]
[408534283,1773853831643,-515.94292169,0.00013706,2]
[408534284,1773853831672,-10556.17413177,0.00013706,2]
[408534294,1773853831959,-22.19841182,0.00013706,2]
[408534295,1773853831969,-500.0,0.00013756,2]
[408534296,1773853831978,-46.9332786,0.00013756,2]
[408534297,1773853831990,-459.78801396,0.00013756,2]
[408534298,1773853831999,-300.0,0.00013756,2]
[408534299,1773853832010,-435.01,0.0001378,2]
[408534300,1773853832019,-600.0,0.00013885,2]
[408534301,1773853832029,-699.38092913,0.00013885,2]
[408534302,1773853832038,-500.0,0.00014045,3]
[408534303,1773853832048,-386.42,0.0001419,2]
[408534304,1773853832057,-1486.19952885,0.0001439,2]
[408534305,1773853832068,-1606.3701176,0.0001439,2]
[408534306,1773853832080,-13777.57668504,0.0001439,2]
[408534307,1773853832091,-18762.66440384,0.0001439,2]
[408534313,1773853837612,-1700.0,0.00014082,2]
[408534315,1773853837621,-500.0,0.00014356,2]
[408534316,1773853837630,-1100.0,0.00014356,2]
[408534317,1773853837639,-43474.72100496,0.0001439,2]
[408534327,1773853839828,-1458.11729606,0.0001439,2]
[408534328,1773853839839,-559.23939999,0.0001439,2]
[408534329,1773853839850,-191997.36546366,0.0001439,2]
[408534330,1773853839860,-166.6,0.0001441,2]
[408534331,1773853839870,-435.01,0.00014469,2]
[408534332,1773853839879,-15285.94930357,0.0001449,2]
[408534333,1773853839888,-150.0,0.0001454,2]
[408534334,1773853839897,-16287.96803851,0.00014541,2]
[408534335,1773853839907,-3566.90599033,0.00014541,2]
[408534336,1773853839919,-2010.9,0.00014589,2]
[408534337,1773853839927,-151.0,0.0001459,2]
[408534338,1773853839936,-151.0,0.0001459,2]
[408534339,1773853839946,-341.11224002,0.0001459,2]
[408534340,1773853839955,-204.0,0.00014595,2]
[408534341,1773853839964,-350.58448698,0.00014597,2]
[408534342,1773853839974,-1000.0,0.00014598,2]
[408534343,1773853839983,-500.0,0.00014598,2]
[408534344,1773853839992,-500.0,0.00014598,2]
[408534345,1773853840002,-508.16487536,0.00014598,2]
[408534346,1773853840011,-500.0,0.00014598,2]
[408534347,1773853840020,-178.72497373,0.00014598,2]
[408534348,1773853840029,-347.26007809,0.00014598,2]
[408534349,1773853840038,-500.0,0.00014598,2]
[408534350,1773853840047,-500.0,0.00014598,2]
[408534351,1773853840056,-500.0,0.00014598,2]
[408534352,1773853840065,-500.0,0.00014598,2]
[408534353,1773853840074,-500.0,0.00014598,2]
[408534354,1773853840083,-500.0,0.00014598,2]
[408534355,1773853840092,-500.0,0.00014598,2]
[408534356,1773853840101,-498.50568057,0.00014598,2]
[408534357,1773853840111,-500.0,0.00014598,2]
[408534358,1773853840120,-535.0267245,0.00014598,2]
[408534359,1773853840129,-500.0,0.00014598,2]
[408534360,1773853840138,-171.39533221,0.00014598,2]
[408534361,1773853840147,-500.0,0.00014598,2]
[408534362,1773853840156,-500.0,0.00014598,2]
[408534363,1773853840165,-500.0,0.00014598,2]
[408534364,1773853840174,-500.0,0.00014598,2]
[408534365,1773853840183,-500.0,0.00014598,2]
[408534366,1773853840192,-500.0,0.00014598,2]
[408534367,1773853840202,-500.0,0.00014598,2]
[408534368,1773853840211,-500.0,0.00014598,2]
[408534369,1773853840220,-500.0,0.00014598,2]
[408534370,1773853840229,-500.0,0.00014598,2]
[408534371,1773853840238,-500.0,0.00014598,2]
[408534372,1773853840248,-500.0,0.00014598,2]
[408534373,1773853840257,-500.0,0.00014598,2]
[408534374,1773853840266,-500.0,0.00014598,2]
[408534375,1773853840275,-500.0,0.00014598,2]
[408534376,1773853840284,-500.0,0.00014598,2]
[408534377,1773853840293,-500.0,0.00014598,2]
[408534378,1773853840302,-189.67026626,0.00014598,2]
[408534380,1773853840311,-500.0,0.00014598,2]
[408534382,1773853840320,-500.0,0.00014598,2]
[408534383,1773853840329,-500.0,0.00014598,2]
[408534384,1773853840338,-500.0,0.00014598,2]
[408534385,1773853840348,-500.0,0.00014598,2]
[408534387,1773853840357,-500.0,0.00014598,2]
[408534388,1773853840366,-500.0,0.00014598,2]
[408534390,1773853840375,-500.0,0.00014598,2]
[408534392,1773853840384,-500.0,0.00014598,2]
[408534394,1773853840394,-500.0,0.00014598,2]
[408534396,1773853840404,-500.0,0.00014598,2]
[408534397,1773853840414,-575.39439008,0.00014598,2]
[408534398,1773853840423,-168.8375525,0.00014598,2]
[408534399,1773853840432,-500.0,0.00014598,2]
[408534400,1773853840441,-500.0,0.00014598,2]
[408534401,1773853840450,-321.14350054,0.00014598,2]
[408534402,1773853840459,-243.29332686,0.00014598,2]
[408534403,1773853840469,-500.0,0.00014598,2]
[408534404,1773853840478,-321.33786225,0.00014598,2]
[408534405,1773853840488,-500.0,0.00014598,2]
[408534406,1773853840497,-578.64051193,0.00014598,2]
[408534407,1773853840507,-169.85588993,0.00014598,2]
[408534408,1773853840517,-500.0,0.00014598,2]
[408534409,1773853840527,-500.0,0.00014598,2]
[408534410,1773853840535,-500.0,0.00014598,2]
[408534411,1773853840544,-500.0,0.00014598,2]
[408534412,1773853840554,-500.0,0.00014598,2]
[408534413,1773853840562,-500.0,0.00014598,2]
[408534414,1773853840572,-515.52448038,0.00014598,2]
[408534415,1773853840581,-346480.665,0.00014599,2]
[408534416,1773853840590,-1280.52464246,0.00014641,2]
[408534417,1773853840599,-617.37656424,0.00014641,2]
[408534418,1773853840609,-1461.48110588,0.00014641,2]
[408534419,1773853840618,-329.0,0.00014672,2]
[408534420,1773853840628,-2010.9,0.00014684,2]
[408534421,1773853840638,-16287.96803845,0.00014692,2]
[408534423,1773853840647,-3566.90599028,0.00014692,2]
[408534425,1773853840656,-5452.8963597,0.00014694,2]
[408534427,1773853840665,-1332.4608226,0.00014694,2]
[408534428,1773853840674,-47259.9172512,0.00014694,2]
[408534430,1773853840683,-5279.0260546,0.00014694,2]
[408534432,1773853840692,-3067.2221168,0.00014694,2]
[408534434,1773853840702,-151.0,0.00014694,2]
[408534436,1773853840712,-237.143998,0.00014694,2]
[408534438,1773853840722,-237.143998,0.00014694,2]
[408534440,1773853840731,-237.143998,0.00014694,2]
[408534442,1773853840741,-237.143998,0.00014694,2]
[408534443,1773853840750,-211.23776,0.00014694,2]
[408534444,1773853840761,-211.23776,0.00014694,2]
[408534445,1773853840770,-211.23776,0.00014694,2]
[408534446,1773853840779,-211.23776,0.00014694,2]
[408534447,1773853840789,-1000.0,0.00014699,2]
[408534448,1773853840798,-4482.30309025,0.0001479,2]
[408534449,1773853841013,-16287.96803845,0.00014843,2]
[408534450,1773853841023,-3566.90599028,0.00014843,2]
[408534451,1773853841033,-500.0,0.00014872,2]
[408534452,1773853841042,-791.58053108,0.000149,2]
[408534453,1773853841051,-1240.99124724,0.000149,2]
[408534454,1773853841060,-160.0,0.000149,2]
[408534455,1773853841069,-151.0,0.000149,2]
[408534456,1773853841078,-151.0,0.000149,2]
[408534457,1773853841087,-211.23776,0.000149,2]
[408534458,1773853841096,-211.23776,0.000149,2]
[408534459,1773853841105,-211.23776,0.000149,2]
[408534460,1773853841114,-211.23776,0.000149,2]
[408534461,1773853841123,-1520.0,0.000149,2]
[408534462,1773853841132,-1520.0,0.000149,2]
[408534463,1773853841141,-1520.0,0.000149,2]
[408534464,1773853841150,-1520.0,0.000149,2]
[408534465,1773853841159,-1520.0,0.000149,2]
[408534466,1773853841168,-1520.0,0.000149,2]
[408534467,1773853841177,-1520.0,0.000149,2]
[408534468,1773853841187,-1520.0,0.000149,2]
[408534469,1773853841196,-1520.0,0.000149,2]
[408534470,1773853841205,-1520.0,0.000149,2]
[408534471,1773853841215,-1520.0,0.000149,2]
[408534472,1773853841224,-1520.0,0.000149,2]
[408534473,1773853841234,-1520.0,0.000149,2]
[408534474,1773853841243,-1296.10452817,0.000149,2]
[408534475,1773853841253,-152.72588312,0.000149,2]
[408534476,1773853841263,-329.0,0.0001491,2]
[408534477,1773853841272,-2165.5297112,0.0001491,2]
[408534478,1773853841281,-151.0,0.0001491,2]
[408534479,1773853841292,-1365.3983527,0.00014929,2]
[408534480,1773853841301,-151.0,0.00014994,2]
[408534481,1773853841311,-16287.96803845,0.00014994,2]
[408534482,1773853841320,-3566.90599028,0.00014994,2]
[408534483,1773853841329,-500.0,0.00014998,2]
[408534484,1773853841339,-500.0,0.00014999,2]
[408534485,1773853841348,-500.0,0.00014999,2]
[408534486,1773853841357,-500.0,0.00014999,2]
[408534487,1773853841366,-500.0,0.00014999,2]
[408534488,1773853841376,-500.0,0.00014999,2]
[408534489,1773853841385,-500.0,0.00014999,2]
[408534490,1773853841394,-329.190207,0.00014999,2]
[408534491,1773853841404,-514.11832696,0.00014999,2]
[408534492,1773853841413,-500.0,0.00014999,2]
[408534493,1773853841422,-500.0,0.00014999,2]
[408534494,1773853841431,-532.69752959,0.00014999,2]
[408534495,1773853841440,-505.60652917,0.00014999,2]
[408534496,1773853841449,-500.0,0.00014999,2]
[408534497,1773853841458,-600.0,0.00015,5]
[408534498,1773853841467,-250.0,0.00015,2]
[408534499,1773853841476,-2662.74793472,0.00015013,2]
[408534500,1773853841485,-237.143998,0.00015013,2]
[408534501,1773853841494,-237.143998,0.00015013,2]
[408534502,1773853841503,-237.143998,0.00015013,2]
[408534503,1773853841512,-237.143998,0.00015013,2]
[408534504,1773853841522,-302.0,0.00015019,2]
[408534505,1773853841531,-210.0,0.00015059,2]
[408534506,1773853841540,-211.23776,0.00015068,2]
[408534507,1773853841549,-211.23776,0.00015068,2]
[408534508,1773853841558,-211.23776,0.00015068,2]
[408534509,1773853841567,-211.23776,0.00015068,2]
[408534510,1773853841576,-151.0,0.00015069,2]
[408534511,1773853841585,-500.0,0.00015069,2]
[408534512,1773853841595,-8232.6885148,0.00015069,2]
[408534513,1773853841604,-500.0,0.00015069,2]
[408534514,1773853841613,-1377.06999647,0.00015069,2]
[408534515,1773853841623,-500.0,0.00015069,2]
[408534516,1773853841632,-250.0,0.00015069,2]
[408534517,1773853841641,-500.0,0.00015069,2]
[408534518,1773853841650,-250.0,0.00015069,2]
[408534519,1773853841659,-500.0,0.00015069,2]
[408534520,1773853841669,-277.82178945,0.00015069,2]
[408534521,1773853841678,-500.0,0.00015069,2]
[408534522,1773853841687,-500.0,0.00015069,2]
[408534523,1773853841696,-500.0,0.00015069,2]
[408534524,1773853841707,-500.0,0.00015069,2]
[408534525,1773853841720,-500.0,0.00015069,2]
[408534526,1773853841729,-500.0,0.00015069,2]
[408534527,1773853841739,-500.0,0.00015069,2]
[408534528,1773853841749,-500.0,0.00015069,2]
[408534529,1773853841759,-500.0,0.00015069,2]
[408534530,1773853841768,-500.0,0.00015069,2]
[408534531,1773853841777,-500.0,0.00015069,2]
[408534532,1773853841787,-500.0,0.00015069,2]
[408534533,1773853841796,-500.0,0.00015069,2]
[408534534,1773853841805,-500.0,0.00015069,2]
[408534535,1773853841815,-186.96675001,0.00015069,2]
[408534536,1773853841824,-500.0,0.00015069,2]
[408534537,1773853841833,-500.0,0.00015069,2]
[408534538,1773853841843,-500.0,0.00015069,2]
[408534539,1773853841852,-250.0,0.00015069,2]
[408534540,1773853841861,-500.0,0.00015069,2]
[408534541,1773853841870,-500.0,0.00015069,2]
[408534542,1773853841879,-250.0,0.00015069,2]
[408534543,1773853841889,-500.0,0.00015069,2]
[408534544,1773853841898,-500.0,0.00015069,2]
[408534545,1773853841907,-250.0,0.00015069,2]
[408534546,1773853841916,-500.0,0.00015069,2]
[408534547,1773853841925,-500.0,0.00015069,2]
[408534548,1773853841934,-250.0,0.00015069,2]
[408534549,1773853841944,-500.0,0.00015069,2]
[408534550,1773853841953,-500.0,0.00015069,2]
[408534551,1773853841962,-250.0,0.00015069,2]
[408534552,1773853841972,-500.0,0.00015069,2]
[408534553,1773853841982,-500.0,0.00015069,2]
[408534554,1773853841991,-250.0,0.00015069,2]
[408534555,1773853842000,-500.0,0.00015069,2]
[408534556,1773853842009,-500.0,0.00015069,2]
[408534557,1773853842019,-174.61919141,0.00015069,2]
[408534558,1773853842028,-250.0,0.00015069,2]
[408534559,1773853842038,-500.0,0.00015069,2]
[408534560,1773853842047,-500.0,0.00015069,2]
[408534561,1773853842056,-250.0,0.00015069,2]
[408534562,1773853842065,-500.0,0.00015069,2]
[408534563,1773853842075,-500.0,0.00015069,2]
[408534564,1773853842084,-250.0,0.00015069,2]
[408534565,1773853842093,-500.0,0.00015069,2]
[408534566,1773853842102,-250.0,0.00015069,2]
[408534567,1773853842112,-250.0,0.00015069,2]
[408534568,1773853842121,-250.0,0.00015069,2]
[408534569,1773853842130,-250.0,0.00015069,2]
[408534570,1773853842139,-200.0,0.00015069,2]
[408534571,1773853842148,-250.0,0.00015069,2]
[408534572,1773853842157,-151.0,0.00015069,2]
[408534573,1773853842167,-151.0,0.00015069,2]
[408534574,1773853842176,-201.04041191,0.00015069,2]
[408534575,1773853842186,-250.0,0.00015069,2]
[408534576,1773853842195,-250.0,0.00015069,2]
[408534577,1773853842205,-274.1930115,0.00015069,2]
[408534578,1773853842214,-250.0,0.00015069,2]
[408534579,1773853842224,-250.0,0.00015069,2]
[408534580,1773853842234,-250.0,0.00015069,2]
[408534581,1773853842244,-250.0,0.00015069,2]
[408534582,1773853842253,-250.0,0.00015069,2]
[408534583,1773853842263,-151.0,0.00015069,2]
[408534584,1773853842273,-250.0,0.00015069,2]
[408534585,1773853842282,-250.0,0.00015069,2]
[408534586,1773853842292,-250.0,0.00015069,2]
[408534587,1773853842301,-250.0,0.00015069,2]
[408534588,1773853842310,-299.00268145,0.00015069,2]
[408534589,1773853842321,-669.13395939,0.00015069,2]
[408534590,1773853842330,-600.0,0.00015076,2]
[408534591,1773853842339,-500.0,0.00015076,2]
[408534592,1773853842349,-300.0,0.00015076,2]
[408534593,1773853842358,-300.09997911,0.00015076,2]
[408534594,1773853842367,-1300.0,0.000151,5]
[408534595,1773853842376,-2399.74107951,0.00015105,2]
[408534596,1773853842386,-1365.3983527,0.00015123,2]
[408534598,1773853842396,-500.0,0.00015124,2]
[408534600,1773853842405,-151.0,0.00015124,2]
[408534601,1773853842415,-151.0,0.00015145,2]
[408534602,1773853842425,-295.909496,0.00015145,2]
[408534603,1773853842434,-16287.96803845,0.00015145,2]
[408534605,1773853842444,-3566.90599028,0.00015145,2]
[408534608,1773853842455,-211.23776,0.00015145,2]
[408534610,1773853842464,-211.23776,0.00015145,2]
[408534612,1773853842474,-211.23776,0.00015145,2]
[408534613,1773853842483,-211.23776,0.00015145,2]
[408534614,1773853842494,-500.0,0.00015146,2]
[408534617,1773853842505,-435.01,0.00015158,2]
[408534618,1773853842516,-808.17170675,0.00015176,2]
[408534619,1773853842525,-689.0,0.00015176,2]
[408534620,1773853842535,-500.0,0.00015179,2]
[408534621,1773853842544,-151.0,0.00015179,2]
[408534622,1773853842554,-151.0,0.00015196,2]
[408534623,1773853842564,-151.0,0.00015196,2]
[408534624,1773853842574,-1900.0,0.000152,5]
[408534625,1773853842584,-500.0,0.00015234,2]
[408534626,1773853842593,-151.0,0.00015234,2]
[408534627,1773853842603,-168.0,0.00015253,2]
[408534628,1773853842613,-500.0,0.00015289,2]
[408534629,1773853842622,-151.0,0.00015289,2]
[408534630,1773853842632,-166.8,0.00015289,2]
[408534631,1773853842641,-16287.96803845,0.00015296,2]
[408534632,1773853842651,-3566.90599028,0.00015296,2]
[408534633,1773853842660,-2600.0,0.000153,5]
[408534634,1773853842670,-500.0,0.00015305,2]
[408534635,1773853842679,-1365.3983527,0.00015318,2]
[408534636,1773853842688,-500.0,0.00015344,2]
[408534637,1773853842698,-151.0,0.00015344,2]
[408534638,1773853842707,-168.0,0.0001536,2]
[408534639,1773853842721,-1000.0,0.00015363,2]
[408534640,1773853842730,-1000.0,0.00015363,2]
[408534641,1773853842740,-1000.0,0.00015363,2]
[408534642,1773853842751,-853.649,0.00015363,2]
[408534643,1773853842761,-500.0,0.00015399,2]
[408534644,1773853842770,-3300.0,0.000154,5]
[408534645,1773853842779,-2000.0,0.00015404,2]
[408534646,1773853842792,-500.0,0.0001542,2]
[408534647,1773853842801,-228.834,0.00015434,7]
[408534648,1773853842811,-164.778216,0.00015434,7]
[408534649,1773853842820,-381.204189,0.00015434,7]
[408534650,1773853842831,-193.869091,0.00015434,7]
[408534651,1773853842840,-417.623886,0.00015434,7]
[408534652,1773853842849,-187.572271,0.00015447,2]
[408534653,1773853842858,-16287.96803845,0.00015447,2]
[408534654,1773853842867,-3566.90599028,0.00015447,2]
[408534655,1773853842876,-211.23776,0.00015447,2]
[408534656,1773853842885,-211.23776,0.00015447,2]
[408534657,1773853842895,-211.23776,0.00015447,2]
[408534658,1773853842903,-211.237762,0.00015447,2]
[408534659,1773853842913,-1700.0,0.00015452,2]
[408534660,1773853842922,-3899.0,0.00015474,2]
[408534662,1773853842932,-249.0,0.00015494,2]
[408534664,1773853842941,-600.0,0.000155,5]
[408534666,1773853842952,-1247.6,0.00015507,2]
[408534668,1773853842961,-1365.3983527,0.00015512,2]
[408534670,1773853842970,-192.56,0.00015548,2]
[408534672,1773853842979,-225.7082,0.00015582,7]
[408534674,1773853842988,-204.0,0.00015595,2]
[408534676,1773853842997,-16287.96803845,0.00015598,2]
[408534678,1773853843006,-3566.90599028,0.00015598,2]
[408534680,1773853843016,-600.0,0.000156,5]
[408534682,1773853843025,-200.0,0.000156,2]
[408534684,1773853843035,-154.10725797,0.00015614,2]
[408534686,1773853843044,-151.0,0.00015617,2]
[408534687,1773853843053,-181.08010149,0.00015617,2]
[408534689,1773853843062,-693.89191589,0.00015617,2]
[408534691,1773853843072,-237.143998,0.0001565,2]
[408534692,1773853843080,-237.143998,0.0001565,2]
[408534693,1773853843089,-237.143998,0.0001565,2]
[408534694,1773853843099,-237.143998,0.0001565,2]
[408534695,1773853843108,-210.0,0.0001565,2]
[408534696,1773853843117,-255.0,0.0001566,2]
[408534697,1773853843127,-2775.35226037,0.0001568,2]
[408534698,1773853843137,-205.97277,0.0001568,7]
[408534699,1773853843147,-500.0,0.00015694,2]
[408534700,1773853843156,-600.0,0.000157,5]
[408534701,1773853843165,-1365.3983527,0.00015706,2]
[408534702,1773853843175,-168.0,0.00015718,2]
[408534703,1773853843184,-500.0,0.00015726,2]
[408534705,1773853843193,-1100.0,0.00015726,2]
[408534707,1773853843202,-16287.96803845,0.00015749,2]
[408534709,1773853843212,-3566.90599028,0.00015749,2]
[408534712,1773853843221,-600.0,0.000158,5]
[408534714,1773853843229,-1019.86,0.00015804,2]
[408534715,1773853843241,-320.58489,0.0001583,2]
[408534716,1773853843250,-320.5849,0.0001583,2]
[408534717,1773853843260,-320.5849,0.0001583,2]
[408534718,1773853843271,-435.01,0.00015847,2]
[408534719,1773853843282,-166.6,0.00015851,2]
[408534720,1773853843293,-2419.0,0.00015865,5]
[408534721,1773853843303,-168.0,0.00015889,2]
[408534722,1773853843312,-162.251722,0.0001589,2]
[408534723,1773853843322,-2000.0,0.0001589,2]
[408534724,1773853843332,-1247.6,0.00015895,2]
[408534725,1773853843342,-500.0,0.00015899,2]
[408534726,1773853843352,-522.43758601,0.00015899,2]
[408534727,1773853843361,-500.0,0.00015899,2]
[408534728,1773853843370,-500.0,0.00015899,2]
[408534729,1773853843379,-505.48075268,0.00015899,2]
[408534730,1773853843389,-164.50003126,0.00015899,2]
[408534731,1773853843398,-1304.0,0.000159,5]
[408534732,1773853843407,-3250.52168151,0.000159,2]
[408534733,1773853843416,-10000.0,0.000159,2]
[408534734,1773853843426,-5000.0,0.000159,2]
[408534735,1773853843435,-321.6339966,0.000159,2]
[408534736,1773853843444,-1171.0,0.000159,5]
[408534737,1773853843453,-1365.3983527,0.000159,2]
[408534738,1773853843463,-16287.96803845,0.000159,2]
[408534739,1773853843472,-3566.90599028,0.000159,2]
[408534740,1773853843483,-237.143998,0.000159,2]
[408534741,1773853843492,-237.143998,0.000159,2]
[408534742,1773853843502,-237.143998,0.000159,2]
[408534743,1773853843511,-237.143998,0.000159,2]
[408534744,1773853843520,-6831.85231635,0.000159,3]
[408534745,1773853843529,-20389.85619807,0.000159,2]
[408534746,1773853843538,-1841.52030948,0.000159,2]
[408534747,1773853843548,-979.16666667,0.00015936,2]
[408534748,1773853843559,-160.0,0.00015936,2]
[408534749,1773853843569,-249.0,0.0001594,2]
[408534750,1773853843579,-3855.13087091,0.00015956,2]
[408534751,1773853843589,-500.0,0.00015968,2]
[408534752,1773853843598,-500.0,0.00015973,2]
[408534753,1773853843608,-500.0,0.00015973,2]
[408534754,1773853843618,-160.11975848,0.00015973,2]
[408534755,1773853843628,-160.10375546,0.00015973,2]
[408534756,1773853843638,-160.92724101,0.00015973,2]
[408534757,1773853843647,-160.12352153,0.00015973,2]
[408534758,1773853843656,-160.12424924,0.00015973,2]
[408534759,1773853843665,-500.0,0.00015973,2]
[408534760,1773853843674,-500.0,0.00015973,2]
[408534761,1773853843683,-160.12427518,0.00015973,2]
[408534762,1773853843692,-500.0,0.00015973,2]
[408534763,1773853843701,-500.0,0.00015973,2]
[408534764,1773853843711,-500.0,0.00015973,2]
[408534765,1773853843722,-500.0,0.00015973,2]
[408534766,1773853843731,-159.91505138,0.00015973,2]
[408534767,1773853843741,-500.0,0.00015973,2]
[408534768,1773853843750,-500.0,0.00015973,2]
[408534769,1773853843761,-501.27392354,0.00015973,2]
[408534770,1773853843771,-500.0,0.00015973,2]
[408534771,1773853843780,-500.0,0.00015973,2]
[408534772,1773853843791,-500.0,0.00015973,2]
[408534773,1773853843801,-1585.0,0.0001599,2]
[408534774,1773853843811,-199.10037192,0.0001599,2]
[408534775,1773853843821,-199.10037192,0.0001599,2]
[408534776,1773853843830,-199.10037192,0.0001599,2]
[408534777,1773853843840,-1000.0,0.00015994,2]
[408534778,1773853843852,-1000.0,0.00015994,2]
[408534779,1773853843863,-1000.0,0.00015994,2]
[408534780,1773853843874,-1000.0,0.00015994,2]
[408534781,1773853843884,-1000.0,0.00015994,2]
[408534782,1773853843894,-1000.0,0.00015994,2]
[408534783,1773853843904,-1000.0,0.00015994,2]
[408534784,1773853843914,-1000.0,0.00015994,2]
[408534785,1773853843923,-1000.0,0.00015994,2]
[408534786,1773853843932,-1000.0,0.00015994,2]
[408534787,1773853843941,-1000.0,0.00015994,2]
[408534788,1773853843955,-1000.0,0.00015994,2]
[408534789,1773853843964,-1000.0,0.00015994,2]
[408534790,1773853843974,-1000.0,0.00015994,2]
[408534791,1773853843983,-1000.0,0.00015994,2]
[408534792,1773853843996,-1000.0,0.00015994,2]
[408534793,1773853844005,-1000.0,0.00015994,2]
[408534794,1773853844014,-1000.0,0.00015994,2]
[408534795,1773853844026,-1000.0,0.00015994,2]
[408534796,1773853844035,-1000.0,0.00015994,2]
[408534797,1773853844044,-1000.0,0.00015994,2]
[408534798,1773853844054,-1000.0,0.00015994,2]
[408534799,1773853844063,-1000.0,0.00015994,2]
[408534800,1773853844072,-1000.0,0.00015994,2]
[408534801,1773853844082,-1000.0,0.00015994,2]
[408534802,1773853844091,-1000.0,0.00015994,2]
[408534803,1773853844100,-320.56801148,0.00015994,2]
[408534804,1773853844109,-320.5849,0.00015994,2]
[408534805,1773853844120,-320.5849,0.00015994,2]
[408534806,1773853844129,-320.5849,0.00015994,2]
[408534807,1773853844138,-350.0,0.00015998,2]
[408534808,1773853844148,-500.0,0.00015999,2]